Cogmind - Beta 9.2 @@@ ROGUE MODE // 2019.11.13 @ 22:46:17 Player: Cassie Rose Result: Destroyed self via exploding Fusion Modulator Performance ------------- Evolutions (0) 0 Regions Visited (1) 200 Robots Destroyed (25) 125 Value Destroyed (302) 302 Prototype IDs (0) 0 Alien Tech Used (0) 0 Bonus (0) 0 TOTAL SCORE: 627 Bonus ------- None Cogmind --------- Core Integrity 0/250 Matter 253/300 Energy 250/250 System Corruption 0% Temperature Cool (15) Movement Treading (180) Ox1 Location -10/Materials Parts ------- > --- POWER (1) -------- Ion Engine > --- PROPULSION (2) --- Light Treads Wheel > --- UTILITY (2) ------ Large Storage Unit > --- WEAPON (2) ------- Grenade Launcher Datajack > --- INVENTORY (10) --- Sensor Array Seismic Analyzer Medium Laser Peak State ------------ > --- POWER ------------ Light Ion Engine > --- PROPULSION ------- Light Treads Wheel > --- UTILITY ---------- Small Storage Unit Improved Terrain Scanner > --- WEAPON ----------- Medium Laser Medium Laser > --- INVENTORY -------- Ion Engine Light Treads Wheel Compact Wheel Seismic Analyzer Assault Rifle [Rating: 8] Favorites ----------- Power Light Ion Engine Engine Light Ion Engine Propulsion Light Treads Treads Light Treads Wheel Wheel Utility Improved Terrain Scanner Device Improved Terrain Scanner Storage Small Storage Unit Weapon Medium Laser Energy Gun Medium Laser Ballistic Gun Assault Rifle Launcher Grenade Launcher Special Melee Weapon Datajack Build | -11 -10 ------- Run | Scr Mat Slots Evolved . | . . Power . | . . Propulsion . | . . Utility . | . . Weapon . | . . Parts Attached 17 | 8 9 Power 2 | 1 1 Engine 2 | 1 1 Core . | . . Reactor . | . . Propulsion 4 | 2 2 Treads 2 | 1 1 Leg . | . . Wheel 2 | 1 1 Hover . | . . Flight . | . . Utility 3 | 2 1 Device 1 | 1 . Storage 2 | 1 1 Processor . | . . Hackware . | . . Protection . | . . Artifact . | . . Weapon 8 | 3 5 Energy Gun 4 | 2 2 Energy Cannon . | . . Ballistic Gun 1 | 1 . Ballistic Cannon . | . . Launcher 2 | . 2 Special Weapon . | . . Impact Weapon . | . . Slashing Weapon . | . . Piercing Weapon . | . . Special Melee Weapon 1 | . 1 Unidentified Prototypes . | . . Parts Lost 1 | . 1 Power . | . . Propulsion . | . . Utility 1 | . 1 Weapon . | . . Highest Loss Streak 1 | . 1 Average Slot Usage (%) 99 | . 99 Engine 14 | . 14 Treads 14 | . 14 Wheel 14 | . 14 Device 13 | . 13 Storage 14 | . 14 Energy Gun 22 | . 22 Special Melee Weapon 4 | . 4 Naked Turns . | . . Heaviest Build 25 | 12 25 Greatest Support 20 | 20 20 Greatest Overweight (x) 2 | 2 2 Average Overweight (x) 1 | . 1 Largest Inventory Capacity 10 | 6 10 Average Capacity 7 | 5 8 Most Carried 7 | 6 7 Average Carried 5 | 5 5 Final Capacity 10 | 6 10 Final Carried 6 | 6 3 Class Distribution -------------------- 100% | Mutant Dominant Class ---------------- Mutant | -10/Materials Resources | -11 -10 ----------- Run | Scr Mat Matter Collected 368 | 280 88 Remotely . | . . Salvage Created 589 | 252 337 Parts 55 | 27 28 Haulers Intercepted 2 | . 2 Recyclers Shooed . | . . Parts Field Recycled . | . . Retrieved Matter . | . . Parts Self-Destructed . | . . Prevented . | . . Kills | -11 -10 ------- Run | Scr Mat Combat Hostiles Destroyed 7 | . 7 Guns 4 | . 4 AOE 3 | . 3 Classes Destroyed 7 | 3 4 Worker 5 | 2 3 Tunneler 8 | 8 . Hauler 2 | . 2 Recycler 1 | 1 . Watcher 2 | . 2 Swarmer 3 | . 3 Grunt 4 | . 4 Best Kill Streak 4 | 4 4 Combat Bots Only 3 | . 3 Max Kills in Single Turn 3 | 1 3 Gunslinging . | . . Exploded 1 | . 1 Melee . | . . Uniques/NPCs Destroyed . | . . Combat | -11 -10 -------- Run | Scr Mat Damage Taken 640 | . 640 Core 265 | . 265 Absorbed by Shields . | . . Core Remaining (%) 100 | 100 . Volleys Fired 59 | 22 37 Largest 2 | 2 2 Hottest 100 | 100 100 Shots Fired 108 | 44 64 Gun 103 | 44 59 Cannon . | . . Launcher 5 | . 5 Special . | . . Kinetic . | . . Thermal 103 | 44 59 Explosive 5 | . 5 Electromagnetic . | . . Robot Hit Streak 10 | 10 5 Robot Miss Streak 3 | 3 2 Penetration Max . | . . Secondary Targets 2 | . 2 Max Gunslinging Chain 1 | . 1 Shots Hit Robots 65 | 25 40 Core Hits 35 | 12 23 Critical Hits . | . . Critical Kills . | . . Critical Parts Destroyed . | . . Melee Attacks 2 | . 2 Impact . | . . Slashing . | . . Piercing . | . . Sneak Attacks . | . . Combat Hostiles . | . . Follow-up Attacks . | . . Damage Inflicted 984 | 278 706 Guns 625 | 278 347 Cannons . | . . Explosions 359 | . 359 Melee . | . . Ramming . | . . Kinetic . | . . Thermal 625 | 278 347 Explosive 359 | . 359 Electromagnetic . | . . Impact . | . . Slashing . | . . Piercing . | . . Highest Corruption . | . . Average Corruption . | . . Corruption Purged . | . . Overload Shots . | . . Overflow Damage 7 | . 7 Projectiles . | . . Explosions 7 | . 7 Melee . | . . Knockbacks . | . . Impact . | . . Kinetic . | . . Secondary . | . . Self-Inflicted Damage 224 | . 224 Shots 5 | . 5 Rammed . | . . Targets Rammed . | . . Kicked . | . . Crushed . | . . Highest Temperature 373 | 234 373 Average Temperature 86 | 59 103 Received Heat Transfer 168 | . 168 Effects 5 | . 5 Shutdowns 1 | . 1 Interference 3 | . 3 Short Circuit 1 | . 1 Siege Activations . | . . Robots Corrupted . | . . Combat Hostiles . | . . Parts Fried . | . . Impact Corruptions . | . . Robots Melted . | . . Combat Hostiles . | . . Parts Melted 4 | 3 1 Heat Transferred 1850 | 814 1036 Parts Sabotaged . | . . Parts Stolen . | . . Parts Stripped . | . . Power Chain Reactions . | . . Missiles Intercepted . | . . Alert | -11 -10 ------- Run | Scr Mat Peak Influence 132 | 55 132 Average Influence 40 | 20 52 Maximum Alert Level . | . . Low Security (%) 100 | 100 100 Level 1 . | . . Level 2 . | . . Level 3 . | . . Level 4 . | . . Level 5 . | . . High Security . | . . Max Security . | . . Squads Dispatched 1 | . 1 Investigation . | . . Extermination . | . . Reinforcement 1 | . 1 Assault . | . . Garrison . | . . Intercept . | . . Construction Impeded . | . . Haulers Reinforced . | . . Stealth | -11 -10 --------- Run | Scr Mat Distress Signals . | . . Communications Jammed . | . . Distress Signals . | . . Times Spotted 14 | . 14 Peak Tracking Total 3 | . 3 Tactical Retreats . | . . Traps | -11 -10 ------- Run | Scr Mat Traps Triggered 1 | . 1 Indirectly . | . . Trap Hack Attempts . | . . Triggered . | . . Disarmed . | . . Reprogrammed . | . . Reused . | . . Traps Extracted . | . . Installed . | . . Triggered . | . . Machines | -11 -10 ---------- Run | Scr Mat Machines Disabled 2 | . 2 Max in Single Turn 2 | . 2 Machines Sabotaged . | . . Garrisons Compromised . | . . Overloaded Fab Kills . | . . Fab Network Shutdowns . | . . Hacking | -11 -10 --------- Run | Scr Mat Machines Accessed 2 | . 2 Terminals 2 | . 2 Fabricators . | . . Repair Stations . | . . Recycling Units . | . . Scanalyzers . | . . Garrison Access . | . . Total Hacks 7 | . 7 Successful 5 | . 5 Failed 2 | . 2 Catastrophic . | . . Database Lockouts . | . . Manual 3 | . 3 Terminals 7 | . 7 Fabricators . | . . Repair Stations . | . . Recycling Units . | . . Scanalyzers . | . . Garrison Access . | . . Terminal Hacks 4 | . 4 Branch Access Points 1 | . 1 Unreport Threat 1 | . 1 Registered Components 1 | . 1 Zone Layout 1 | . 1 Fabricator Hacks . | . . Repair Station Hacks . | . . Recycling Unit Hacks . | . . Scanalyzer . | . . Garrison Access Hacks . | . . Unauthorized Hacks 3 | . 3 Terminals 1 | . 1 Botnet 1 | . 1 Fabricators . | . . Repair Stations . | . . Recycling Units . | . . Scanalyzers . | . . Garrison Access . | . . Data Cores Recovered . | . . Used . | . . Hacking Detections 2 | . 2 Full Trace Events 1 | . 1 Feedback Events . | . . Feedback Blocked . | . . Robot Schematics Acquired . | . . Robots Built . | . . Matter . | . . Time . | . . Total Robot Build Rating . | . . Part Schematics Acquired . | . . Parts Built . | . . Matter . | . . Time . | . . Total Part Build Rating . | . . Parts Repaired . | . . Time . | . . Parts Recycled . | . . Recycled Matter . | . . Retrieved Matter . | . . Retrieved Components . | . . Parts Scanalyzed . | . . Part Schematics Acquired . | . . Parts Damaged . | . . Bothacking | -11 -10 ------------ Run | Scr Mat Used RIF Installer . | . . Robots Hacked 1 | . 1 Non-combat . | . . Combat 1 | . 1 Robot Hacks Applied 1 | . 1 parse_system 1 | . 1 Relay Couplers Released . | . . Robots Rewired . | . . Allies Hacked . | . . Hacks Repelled . | . . Allies | -11 -10 -------- Run | Scr Mat Total Allies . | . . Largest Group . | . . Highest-Rated Group . | . . Highest-Rated Ally . | . . Total Orders . | . . Ally Attacks . | . . Total Damage . | . . Kills . | . . Allies Corrupted . | . . Allies Melted . | . . Intel | -11 -10 ------- Run | Scr Mat Robot Analysis Total . | . . Derelict Logs Recovered . | . . Drone Launches . | . . Drone Recoveries . | . . Exploration | -11 -10 ------------- Run | Scr Mat Turns Passed 733 | 292 441 Spaces Moved 483 | 181 302 Core 23 | 23 . Treads 76 | 72 4 Legs . | . . Wheels 384 | 86 298 Hover . | . . Flight . | . . Fastest Speed 50 | 50 90 Average Speed 102 | 114 95 Slowest Speed 180 | 160 180 Overloaded Moves . | . . Propulsion Burnouts . | . . Robots Hopped . | . . Cave-ins Triggered . | . . Exploration Rate (%) 29 | 8 50 Regions Visited 1 Branch Regions . Pre-discovered Areas . | . . Known Exits Taken . | . . Unknown Exits Taken 1 | 1 . Scrap Searched . | . . Spaces Dug . | . . Terrain Destroyed 14 | . 14 Melee . | . . Projectile . | . . AOE 14 | . 14 Actions | -11 -10 --------- Run | Scr Mat Total 608 | 219 389 Wait 28 | . 28 Move 482 | 180 302 Hop . | . . Pick Up 12 | 9 3 Fast Attach 4 | 4 . Attach 3 | 3 . Detach . | . . Swap 10 | 1 9 Drop 8 | . 8 Fire 59 | 22 37 Melee 2 | . 2 Ram . | . . Kick . | . . Crush . | . . Escape Stasis . | . . Rewire . | . . Trap . | . . Miscellaneous . | . . Route ------- -11/Scrapyard -10/Materials (discovered 2 exits: [*Mat] / *Min) History --------- Turn | Location | Event 16 | -11/Scrapyard | Discovered new exit (range 16) 293 | -11/Scrapyard | Entered Materials 313 | -10/Materials | Build established: Mutant 523 | -10/Materials | Discovered new exit (range 15) 546 | -10/Materials | Identified exit to Mines 713 | -10/Materials | Discovered new exit (range 12) 726 | -10/Materials | Core integrity fell below 50% 734 | -10/Materials | Destroyed self via exploding Fusion Modulator Last Messages --------------- 00614_ Dropped Wheel. 00614_ Dropped Med. Laser. 00616_ Acquired 24 matter. 00617_ K-01 Serf collects debris. 00635_ Dropped Lgt. Ion Engine. 00638_ K-01 Serf collects debris. 00673_ Acquired 18 matter. 00695_ O-16 Technician: "IFF HANDSHAKE FAILED. SECURING TERMINAL." 00701_ ALERT: Hostiles spotted, dispatching reinforcements to Terminal M003. 00703_ Triggered Explosive Trap. 00703_ An explosion rips through the floor. 00713_ EXIT=FOUND 00729_ G-34 Mercenary destroyed. 00729_ K-01 Serf destroyed. 00729_ Imp. Terrain Scanner destroyed. 00729_ Destroyed Imp. Terrain Scanner. 00729_ K-01 Serf destroyed. 00731_ G-34 Mercenary destroyed. 00734_ Fusion Modulator explodes. Map ----- +----------------------------------------------------+ | ?#! #### # """ ## | | ##! ! =* + """ + | | ?#! =## # ## | | ?##!! ## # ## | | ??#### ######## ## | | ????## # ?????########## | | ?????# #??? ?????#???#?# | | ?????# #??????????????? | | ?????# #??????????#???###### # | | ?????# #???????????????????#+# | | ?????# #??????#?????? ??#? | | ???#?# #????????? ?????????? | | ????## #???????????????????? ? | | ?#???# #?#####??????????????? | | ?????# #? ????????????????? | | ?????# #? ????????????????? | | ?????# # #???????????????? | | ?????# # """ #???????????????? | | ?????#o# """ #???????????????? | | ????## # """ #???????????????? | | ???## #????#??????????? | | #### #?#?????????????? | | # " #?#?????????????? | | # % T #??#????????????? | | # ! " #???????????????? | | # @* #???????????????? | | # [* +###???????????????? | | # %=%= ???????????????? | | # = #????????????? | | # #?#??????????? | | # < #????????????? | | # """ #????????????? | | # """ ######????????????? | | # """ ###+#?????????????????? | | # #?????????????????????? | | ????####?????????????????????? | | ?????????????????????????????? | | ?????????????????????????????? | | ????#???? ???????????????????? | | ?????????????????????????????? | | | | | | | | | | | | | | | | | | | | | +----------------------------------------------------+ Best States ------------- Heat Dissipation 25 Energy Generation 10 Energy Capacity 250 Matter Stores 300 Matter Capacity 300 Sight Range 16 Terrain Scan Range 16 Terrain Scan Density 10 Evasion (%) 42 Recoil Reduction 1 Item Schematics ----------------- None Robot Schematics ------------------ None Fabricated ------------ Nothing Alien Tech Used ----------------- None Achievements -------------- None Challenges ------------ None Game ------ Seed GuidanceScanMatter Manual? 0 Play Time 00:13:53 Cumulative 13.5 hours Start 2019.11.13 @ 22:32:01 End 2019.11.13 @ 22:46:17 Sessions 1 Manual Loads 0 Difficulty Rogue Special Mode None Game No. 20 Rogue 20 Adventurer 0 Explorer 0 Win Type - Total 0 Types 0/0/0/0/0/0/0 Lore% 18 Gallery% 14 Achievement% 16 Wizard Run 0 Options --------- ASCII 0 Keyboard 0 Movement Arrows Keybinds 0 Fullscreen 1 Font 18/X11 Map View 76x50 Tactical HUD 1 Map Filters NONE Filters LOW_CONTRAST(13,24,33) Steam 1 RUN: e8912585-3d0c-4342-90c6-0fac1b8c4833